Cogmind - Beta 14 @@@ ROGUE MODE // 2024.10.11 @ 22:46:31 Player: hoganstuff Result: Destroyed by S-27 Virus with Autogun Performance ------------- Evolutions (3) 1500 Regions Visited (7) 1400 Robots Destroyed (132) 660 Value Destroyed (4058) 4058 Prototype IDs (7) 140 Alien Tech Used (0) 0 Bonus (956) 956 TOTAL SCORE: 8714 Bonus ------- High Alert Combat Kills 756 Entered Garrisons 200 Cogmind --------- Core Integrity 0/700 Matter 199/300 Energy 100/100 System Corruption 3% Temperature Cool (0) Movement Core (50) Location -7/Garrison Parts ------- > --- POWER (1) -------- (None) > --- PROPULSION (3) --- (None) > --- UTILITY (5) ------ Launcher Guidance Computer > --- WEAPON (4) ------- (None) > --- INVENTORY (5) ---- Titanium Leg Improved Carbon-fiber Leg Compact Matter Pod (68) Launcher Guidance Computer Drone Bay (2/2) Peak State ------------ > --- POWER ------------ Light Fission Core > --- PROPULSION ------- Medium Treads Myomer Leg Biometal Leg > --- UTILITY ---------- Cryofiber Web Medium Storage Unit Launcher Guidance Computer Improved Phase Shifter Improved Light Armor Plating > --- WEAPON ----------- KE Penetrator Mini Grenade Launcher Mini Grenade Launcher Scythe > --- INVENTORY -------- Micro Nuclear Core Titanium Leg Improved Carbon-fiber Leg Thermal Generator Improved Heat Sink Compact Matter Pod Launcher Guidance Computer Drone Bay Plasma Cannon High-powered Shotgun [Rating: 58] Favorites ----------- Power Light Nuclear Core Engine Light Ion Engine Power Core Light Nuclear Core Propulsion Aluminum Leg Treads Advanced Treads Leg Aluminum Leg Wheel Wheel Hover Unit Hover Unit Flight Unit Improved Flight Unit Utility Targeting Computer Device Improved Heat Sink Storage Medium Storage Unit Processor Targeting Computer Protection Propulsion Shielding Weapon Mini Grenade Launcher Energy Gun Improved EM Shotgun Energy Cannon Advanced Beam Cannon Ballistic Gun Shotgun Ballistic Cannon Light Cannon Launcher Mini Grenade Launcher Slashing Weapon Katana Build | -11 -10 -10 -9 -9 -8 -7 -7 ------- Run | Yrd Mat Min Mat Sto Mat Fac Gar Slots Evolved 6 | . . . 2 . 2 2 . Power . | . . . . . . . . Propulsion 1 | . . . . . 1 . . Utility 3 | . . . 1 . 1 1 . Weapon 2 | . . . 1 . . 1 . Parts Attached 114 | 5 15 7 5 29 21 23 9 Power 15 | 1 2 2 1 3 3 1 2 Engine 7 | 1 2 1 . 2 1 . . Core 8 | . . 1 1 1 2 1 2 Reactor . | . . . . . . . . Propulsion 36 | 2 4 2 . 9 8 9 2 Treads 5 | . . . . . . 5 . Leg 25 | . 2 2 . 7 8 4 2 Wheel 2 | 2 . . . . . . . Hover 3 | . 2 . . 1 . . . Flight 1 | . . . . 1 . . . Utility 25 | . 4 1 3 4 4 7 2 Device 10 | . 2 1 . 1 2 3 1 Storage 3 | . . . 2 . . 1 . Processor 4 | . 2 . . 1 . 1 . Hackware . | . . . . . . . . Protection 8 | . . . 1 2 2 2 1 Artifact . | . . . . . . . . Weapon 38 | 2 5 2 1 13 6 6 3 Energy Gun 10 | 1 . . 1 6 1 1 . Energy Cannon 5 | . . . . 3 1 . 1 Ballistic Gun 12 | 1 3 1 . 2 1 2 2 Ballistic Cannon 2 | . 2 . . . . . . Launcher 6 | . . 1 . 1 2 2 . Special Weapon . | . . . . . . . . Impact Weapon . | . . . . . . . . Slashing Weapon 3 | . . . . 1 1 1 . Piercing Weapon . | . . . . . . . . Special Melee Weapon . | . . . . . . . . Unidentified Prototypes 4 | . . . . 4 . . . Parts Lost 43 | . 2 1 2 11 10 4 13 Power 6 | . . . . 1 3 . 2 Propulsion 10 | . 2 . . 4 2 . 2 Utility 7 | . . . . 1 2 . 4 Weapon 20 | . . 1 2 5 3 4 5 Highest Loss Streak 13 | . 2 1 1 5 3 4 13 To Critical Strikes . | . . . . . . . . Average Slot Usage (%) 91 | . 96 100 90 76 95 98 82 Engine 2 | . 14 3 . . 1 . . Core 6 | . . 10 9 4 6 7 6 Leg 18 | . 3 28 22 17 25 17 11 Hover 2 | . 17 . . . . . . Device 8 | . 13 14 11 2 3 12 12 Storage 6 | . . . 5 11 9 7 6 Processor 11 | . 14 14 11 11 9 14 7 Protection 4 | . . . 5 3 12 1 6 Energy Gun 5 | . . . 6 9 6 8 . Energy Cannon 2 | . . . . 2 7 . 3 Ballistic Gun 9 | . 18 25 11 2 1 6 5 Ballistic Cannon 1 | . 8 . . . . . . Launcher 5 | . . 2 8 . 9 10 12 Slashing Weapon 3 | . . . . 9 1 3 2 Peak Build Rating 58 | 5 9 13 15 18 36 47 58 Average Rating 20 | 3 7 11 13 13 22 41 47 On Entrance 15 | . 5 9 12 12 18 33 38 Naked Turns . | . . . . . . . . Heaviest Build 37 | 7 12 13 18 26 34 36 37 Greatest Support 72 | 20 20 20 20 20 45 72 72 Greatest Overweight (x) 7 | . 3 . . 7 1 . 5 Average Overweight (x) . | . . . . . . . . Largest Inventory Capacity 10 | 5 5 5 10 10 10 10 10 Average Capacity 8 | 5 5 5 6 10 10 10 9 Most Carried 10 | 1 5 5 8 10 10 10 10 Average Carried 7 | . 3 4 5 7 9 9 9 Final Capacity 10 | 5 5 5 10 10 10 10 5 Final Carried 10 | . 3 5 7 9 10 10 5 Class Distribution -------------------- 33% | Mutant 23% | Scavenger-Mutant 11% | Scavenger-Gunner 11% | Bomber 9% | Scavenger-Tank 8% | Gunner Dominant Class ---------------- Mutant | -10/Materials Scavenger-Mutant | -10/Mines Scavenger-Gunner | -9/Materials Mutant | -9/Storage Scavenger-Tank | -8/Materials Gunner | -7/Factory Bomber | -7/Garrison Resources | -11 -10 -10 -9 -9 -8 -7 -7 ----------- Run | Yrd Mat Min Mat Sto Mat Fac Gar Matter Collected 2354 | 259 336 240 227 271 509 219 293 Remotely . | . . . . . . . . Salvage Created 4026 | 42 386 203 477 853 1148 414 503 Parts 253 | 3 37 11 29 62 58 26 27 Haulers Intercepted . | . . . . . . . . Recyclers Shooed 1 | . . 1 . . . . . Parts Field Recycled . | . . . . . . . . Retrieved Matter . | . . . . . . . . Parts Self-Destructed . | . . . . . . . . Prevented . | . . . . . . . . Kills | -11 -10 -10 -9 -9 -8 -7 -7 ------- Run | Yrd Mat Min Mat Sto Mat Fac Gar Combat Hostiles Destroyed 109 | 1 17 7 14 21 22 11 16 Melee 13 | . . . . 5 4 4 . Guns 47 | 1 13 5 3 12 5 2 6 Cannons 14 | . 4 . . 3 7 . . AOE 35 | . . 2 11 1 6 5 10 Classes Destroyed 13 | 1 2 . 6 1 2 1 . Worker 6 | . . . 2 1 1 2 . Builder 5 | . . . 2 . 2 1 . Tunneler 1 | . . . 1 . . . . Recycler 3 | . 1 1 . . 1 . . Mechanic 2 | . . . 1 . . 1 . Operator 1 | . . . 1 . . . . Watcher 5 | . . . . 1 2 2 . Swarmer 37 | . 12 3 2 8 3 3 6 Grunt 52 | 1 5 4 11 5 13 5 8 Brawler 1 | . . . . . 1 . . Sentry 15 | . . . 1 8 4 . 2 Hunter 1 | . . . . . 1 . . Programmer 3 | . . . . . . 3 . Best Kill Streak 12 | 1 7 3 12 5 6 8 11 Combat Bots Only 11 | 1 7 3 9 5 5 6 11 Max Kills in Single Turn 4 | 1 2 2 4 1 3 3 3 Gunslinging 1 | . 1 . . . . . . Exploded 4 | . . 2 4 1 2 2 3 Melee 1 | . . . . 1 1 1 . Uniques/NPCs Destroyed . | . . . . . . . . Combat | -11 -10 -10 -9 -9 -8 -7 -7 -------- Run | Yrd Mat Min Mat Sto Mat Fac Gar Hostile Shots Fired 686 | 4 132 20 44 144 113 53 176 Missed 227 | . 55 8 19 46 29 15 55 Damage Taken 6335 | 43 645 172 349 1259 1249 801 1817 Core 1451 | 22 148 25 60 323 164 162 547 Absorbed by Shields . | . . . . . . . . Redirected to Shielding 93 | . . . 14 4 75 . . Regen/Repaired (Parts) 140 | . . . 42 . 98 . . Core Remaining (%) 46 | 91 . 22 . 4 70 . . Volleys Fired 188 | 3 37 15 21 43 33 18 18 Largest 4 | 2 2 2 3 3 3 4 4 Hottest 174 | 60 55 56 93 143 143 174 173 Shots Fired 390 | 6 74 30 46 65 69 52 48 Gun 252 | 6 48 27 33 54 30 37 17 Cannon 75 | . 26 . . 9 22 . 18 Launcher 63 | . . 3 13 2 17 15 13 Special . | . . . . . . . . Kinetic 187 | 3 74 27 21 21 9 15 17 Thermal 59 | . . . . 9 21 11 18 Explosive 63 | . . 3 13 2 17 15 13 Electromagnetic 81 | 3 . . 12 33 22 11 . Robot Hit Streak 14 | 3 10 4 6 13 14 5 10 Robot Miss Streak 5 | 1 5 5 3 4 4 4 4 Penetration Max 1 | . . . . . . . 1 Secondary Targets 4 | . 4 . . . . . . Max Gunslinging Chain 1 | . 1 . . . . . . Shots Hit Robots 275 | 4 49 17 28 63 54 36 24 Core Hits 218 | 2 22 13 37 34 51 27 32 Critical Kills 1 | . 1 . . . . . . Critical Parts Destroyed 2 | . 1 1 . . . . . Critical Strikes 6 | . 3 1 . 1 . 1 . Destroy 3 | . 2 1 . . . . . Blast 1 | . 1 . . . . . . Sever 2 | . . . . 1 . 1 . Melee Attacks 36 | . . . . 15 13 8 . Impact . | . . . . . . . . Slashing 36 | . . . . 15 13 8 . Piercing . | . . . . . . . . Sneak Attacks 1 | . . . . 1 . . . Combat Hostiles . | . . . . . . . . Follow-up Attacks . | . . . . . . . . Damage Inflicted 8586 | 52 696 436 1351 1220 1960 1379 1492 Guns 2580 | 52 469 219 196 544 465 312 323 Cannons 1023 | . 227 . . 124 364 . 308 Explosions 3992 | . . 213 1152 107 778 883 859 Melee 968 | . . . . 445 339 184 . Ramming 23 | . . 4 3 . 14 . 2 Kinetic 1769 | 10 696 219 110 140 127 144 323 Thermal 1238 | . . . 213 203 279 235 308 Explosive 3588 | . . 213 939 28 778 771 859 Electromagnetic 1000 | 42 . . 86 404 423 45 . Impact . | . . . . . . . . Slashing 968 | . . . . 445 339 184 . Piercing . | . . . . . . . . Highest Corruption 3 | . . . . 1 . 3 3 Average Corruption 2 | . . . . 1 . 2 3 Corruption Purged . | . . . . . . . . Corruption Blocked . | . . . . . . . . Effects 7 | . . . . . . 2 5 Message Errors 3 | . . . . . . 1 2 Matter Fused 1 | . . . . . . 1 . Heat Flow Errors 2 | . . . . . . . 2 Parts Fused 1 | . . . . . . . 1 Overload Shots . | . . . . . . . . Overflow Damage 180 | . . 17 41 15 11 66 30 Projectiles 17 | . . . . . . . 17 Explosions 159 | . . 17 41 11 11 66 13 Melee 4 | . . . . 4 . . . Knockbacks 5 | . 5 . . . . . . Impact . | . . . . . . . . Kinetic 4 | . 4 . . . . . . Secondary 1 | . 1 . . . . . . Self-Inflicted Damage 459 | . . 36 38 38 100 130 117 Shots 20 | . . 2 3 1 4 5 5 Rammed 1 | . . . . . . . 1 Targets Rammed 4 | . . 1 1 . 1 . 1 Kicked 3 | . . 1 1 . 1 . . Crushed . | . . . . . . . . Highest Temperature 478 | 12 . 13 11 180 246 . 478 Average Temperature 80 | 10 . 9 4 44 75 . 149 Received Heat Transfer 1629 | 24 78 75 165 564 450 63 210 Siege Activations . | . . . . . . . . Robots Corrupted . | . . . . . . . . Combat Hostiles . | . . . . . . . . Parts Fried 2 | . . . . 1 1 . . Impact Corruptions . | . . . . . . . . Robots Melted . | . . . . . . . . Combat Hostiles . | . . . . . . . . Parts Melted . | . . . . . . . . Heat Transferred 1986 | . . . 150 322 555 359 600 Parts Sabotaged . | . . . . . . . . Parts Stolen . | . . . . . . . . Parts Stripped . | . . . . . . . . Power Chain Reactions 1 | . . . . 1 . . . Alert | -11 -10 -10 -9 -9 -8 -7 -7 ------- Run | Yrd Mat Min Mat Sto Mat Fac Gar Peak Influence 959 | 20 343 308 677 626 836 767 959 Initial 519 | . 13 133 70 201 223 311 519 Average 377 | 3 171 235 449 348 473 497 661 Maximum Alert Level 3 | . 1 1 2 2 3 3 3 Low Security (%) 17 | 100 61 42 19 1 . . . Level 1 38 | . 38 57 5 48 37 46 . Level 2 39 | . . . 74 50 54 45 72 Level 3 4 | . . . . . 8 8 27 Level 4 . | . . . . . . . . Level 5 . | . . . . . . . . High Security . | . . . . . . . . Max Security . | . . . . . . . . Squads Dispatched 19 | . 4 . 3 3 5 4 . Investigation 8 | . 2 . 1 1 2 2 . Extermination 2 | . . . . . . 2 . Reinforcement 8 | . 2 . 1 2 3 . . Assault 1 | . . . 1 . . . . Garrison . | . . . . . . . . Intercept . | . . . . . . . . Searches Triggered . | . . . . . . . . Construction Impeded 2 | . . . 1 . 1 . . Haulers Reinforced . | . . . . . . . . Active Scanning Responses . | . . . . . . . . Cargo Convoy Interrupts . | . . . . . . . . Stealth | -11 -10 -10 -9 -9 -8 -7 -7 --------- Run | Yrd Mat Min Mat Sto Mat Fac Gar Distress Signals 7 | . 1 . 1 . 3 2 . Communications Jammed . | . . . . . . . . Distress Signals . | . . . . . . . . Times Spotted 160 | 1 26 11 25 27 31 15 24 Peak Tracking Total 14 | 1 10 4 9 5 7 6 14 Tactical Retreats 10 | . 2 2 2 2 . 1 1 Traps | -11 -10 -10 -9 -9 -8 -7 -7 ------- Run | Yrd Mat Min Mat Sto Mat Fac Gar Traps Triggered 6 | . 1 . . 2 . 3 . Indirectly . | . . . . . . . . Trap Hack Attempts . | . . . . . . . . Triggered . | . . . . . . . . Disarmed . | . . . . . . . . Reprogrammed . | . . . . . . . . Reused . | . . . . . . . . Traps Extracted . | . . . . . . . . Installed . | . . . . . . . . Triggered . | . . . . . . . . Machines | -11 -10 -10 -9 -9 -8 -7 -7 ---------- Run | Yrd Mat Min Mat Sto Mat Fac Gar Machines Disabled 19 | . 1 1 4 . 3 8 2 Max in Single Turn 5 | . 1 1 2 . 1 5 1 Machines Repaired . | . . . . . . . . Machines Dismantled . | . . . . . . . . Machines Sabotaged . | . . . . . . . . Overloaded Fab Kills . | . . . . . . . . Hacking | -11 -10 -10 -9 -9 -8 -7 -7 --------- Run | Yrd Mat Min Mat Sto Mat Fac Gar Machines Accessed 28 | . 4 . 3 10 5 5 1 Terminals 20 | . 4 . 2 8 3 2 1 Fabricators 1 | . . . . . . 1 . Repair Stations 4 | . . . 1 1 1 1 . Recycling Units 2 | . . . . 1 1 . . Scanalyzers . | . . . . . . . . Garrison Access 1 | . . . . . . 1 . Total Hacks 60 | . 11 . 6 15 18 9 1 Successful 25 | . 3 . 4 7 7 3 1 Failed 35 | . 8 . 2 8 11 6 . Catastrophic 9 | . 2 . 1 1 2 3 . Database Lockouts . | . . . . . . . . Manual 17 | . 7 . 2 2 3 3 . Terminals 37 | . 11 . 2 9 11 3 1 Fabricators 2 | . . . . . . 2 . Repair Stations 14 | . . . 4 3 4 3 . Recycling Units 6 | . . . . 3 3 . . Scanalyzers . | . . . . . . . . Garrison Access 1 | . . . . . . 1 . Terminal Hacks 15 | . 3 . 1 7 3 . 1 Record 2 | . . . . . 2 . . Prototype ID Bank 1 | . . . . 1 . . . Open Door 6 | . . . . 6 . . . Branch Access Points 3 | . 1 . 1 . 1 . . Emergency Access Points 1 | . . . . . . . 1 Locate Traps 1 | . 1 . . . . . . Hauler Manifests 1 | . 1 . . . . . . Fabricator Hacks 1 | . . . . . . 1 . Build 1 | . . . . . . 1 . Repair Station Hacks 8 | . . . 3 . 4 1 . Scan Component 5 | . . . 2 . 2 1 . Repair 3 | . . . 1 . 2 . . Recycling Unit Hacks . | . . . . . . . . Scanalyzer . | . . . . . . . . Garrison Access Hacks 1 | . . . . . . 1 . Unlock Access 1 | . . . . . . 1 . Unauthorized Hacks . | . . . . . . . . Terminals . | . . . . . . . . Fabricators . | . . . . . . . . Repair Stations . | . . . . . . . . Recycling Units . | . . . . . . . . Scanalyzers . | . . . . . . . . Garrison Access . | . . . . . . . . Data Cores Recovered . | . . . . . . . . Used . | . . . . . . . . Hacking Detections 18 | . 4 . 3 3 4 4 . Full Trace Events 12 | . 3 . 1 2 4 2 . Feedback Events 2 | . . . . 1 . 1 . Corruption 2 | . . . . 1 . 1 . Feedback Blocked . | . . . . . . . . Robot Schematics Acquired . | . . . . . . . . Robots Built . | . . . . . . . . Authchips . | . . . . . . . . Time . | . . . . . . . . Total Robot Build Rating . | . . . . . . . . Part Schematics Acquired . | . . . . . . . . Parts Built 2 | . . . . . . 2 . Authchips . | . . . . . . . . Time 53 | . . . . . . 53 . Total Part Build Rating 12 | . . . . . . 12 . Parts Repaired 3 | . . . 1 . 2 . . Time 90 | . . . 38 . 52 . . Parts Recycled . | . . . . . . . . Recycled Matter . | . . . . . . . . Retrieved Matter . | . . . . . . . . Retrieved Components . | . . . . . . . . Parts Scanalyzed . | . . . . . . . . Part Schematics Acquired . | . . . . . . . . Parts Damaged . | . . . . . . . . Bothacking | -11 -10 -10 -9 -9 -8 -7 -7 ------------ Run | Yrd Mat Min Mat Sto Mat Fac Gar Used RIF Installer . | . . . . . . . . Robots Hacked . | . . . . . . . . Non-combat . | . . . . . . . . Combat . | . . . . . . . . Robot Hacks Applied . | . . . . . . . . Relay Couplers Released . | . . . . . . . . Fabnet Peak Effective % . | . . . . . . . . Robots Rewired . | . . . . . . . . Allies Hacked . | . . . . . . . . Hacks Repelled . | . . . . . . . . Allies | -11 -10 -10 -9 -9 -8 -7 -7 -------- Run | Yrd Mat Min Mat Sto Mat Fac Gar Total Allies . | . . . . . . . . Largest Group . | . . . . . . . . Highest-Rated Group . | . . . . . . . . Highest-Rated Ally . | . . . . . . . . Total Orders . | . . . . . . . . Ally Attacks . | . . . . . . . . Total Damage . | . . . . . . . . Kills . | . . . . . . . . Allies Corrupted . | . . . . . . . . Allies Melted . | . . . . . . . . Intel | -11 -10 -10 -9 -9 -8 -7 -7 ------- Run | Yrd Mat Min Mat Sto Mat Fac Gar Robot Analysis Total . | . . . . . . . . Derelict Logs Recovered . | . . . . . . . . Drone Launches . | . . . . . . . . Drone Recoveries . | . . . . . . . . Exploration | -11 -10 -10 -9 -9 -8 -7 -7 ------------- Run | Yrd Mat Min Mat Sto Mat Fac Gar Turns Passed 4249 | 73 559 570 416 949 819 631 232 Spaces Moved 2781 | 76 601 411 251 477 485 356 124 Core 85 | 20 8 . . 51 . . 6 Treads 86 | . . . . . . 79 7 Legs 2008 | . 52 411 251 421 485 277 111 Wheels 152 | 56 96 . . . . . . Hover 450 | . 445 . . 5 . . . Flight . | . . . . . . . . Fastest Speed 50 | 50 56 120 120 120 120 120 110 Average Speed 113 | 72 67 120 120 150 121 127 123 Slowest Speed 400 | 80 200 120 120 400 190 160 300 Overloaded Moves . | . . . . . . . . Propulsion Burnouts . | . . . . . . . . Robots Hopped . | . . . . . . . . Cave-ins Triggered . | . . . . . . . . Exploration Rate (%) 42 | 6 68 89 24 53 62 9 29 Regions Visited 7 Branch Regions 2 Pre-discovered Areas . | . . . . . . . . Known Exits Taken 3 | . 1 . 1 . . 1 . Unknown Exits Taken 4 | 1 . 1 . 1 1 . . Scrap Searched 1 | . . 1 . . . . . Spaces Dug 15 | . . . . . . . 15 Terrain Destroyed 525 | . . 27 114 26 129 166 63 Melee . | . . . . . . . . Projectile 3 | . . . . 1 . . 2 AOE 522 | . . 27 114 25 129 166 61 Terrain Rammed . | . . . . . . . . Walls Destroyed . | . . . . . . . . Machines Disabled . | . . . . . . . . Actions | -11 -10 -10 -9 -9 -8 -7 -7 --------- Run | Yrd Mat Min Mat Sto Mat Fac Gar Total 3464 | 85 684 459 329 627 634 482 164 Wait 220 | . 10 12 46 20 67 60 5 Move 2774 | 75 600 410 250 476 484 355 124 Hop . | . . . . . . . . Pick Up 49 | 1 8 6 4 14 9 7 . Fast Attach 46 | 5 6 2 2 11 8 8 4 Attach 33 | . 4 1 1 11 6 8 2 Detach 16 | . 5 . . 8 . 2 1 Swap 35 | . 5 4 2 7 7 7 3 Drop 53 | 1 9 8 2 12 6 9 6 Fire 188 | 3 37 15 21 43 33 18 18 Melee 36 | . . . . 15 13 8 . Ram 1 | . . . . . . . 1 Kick 3 | . . 1 1 . 1 . . Crush . | . . . . . . . . Escape Stasis 10 | . . . . 10 . . . Rewire . | . . . . . . . . Trap . | . . . . . . . . Miscellaneous . | . . . . . . . . Route ------- -11/Scrapyard -10/Materials (discovered 4 exits: *Mat x2 / *Min x2) -10/Mines (discovered 2 exits: *Mat x2) -9/Materials (discovered 3 exits: Min / *Sto x2) -9/Storage -8/Materials (discovered 2 exits: *Fac x2) -7/Factory -7/Garrison History --------- Turn | Location | Event 2 | -11/Scrapyard | Met Revision 17 49 | -11/Scrapyard | Discovered new exit (range 8) 74 | -11/Scrapyard | Entered Materials 132 | -10/Materials | Identified exit to Mines 314 | -10/Materials | Build established: Mutant 325 | -10/Materials | Discovered new exit (range 12) 408 | -10/Materials | Discovered new exit (range 12) 518 | -10/Materials | Core integrity fell below 50% 573 | -10/Materials | Destroyed 7 combat bots 633 | -10/Materials | Entered Mines 640 | -10/Mines | Met a Derelict bent on vengeance 703 | -10/Mines | Discovered new exit (range 10) 873 | -10/Mines | Build established: Scavenger-Mutant 967 | -10/Mines | Discovered new exit (range 13) 1088 | -10/Mines | Received a Rocket Launcher from a helpful Derelict 1203 | -10/Mines | Entered Materials 1203 | -9/Materials | Evolved 2 slots: Utility x1, Weapon x1 1211 | -9/Materials | Discovered new exit (range 14) 1330 | -9/Materials | Destroyed 9 combat bots 1381 | -9/Materials | Repaired Lgt. Nuclear Core 1523 | -9/Materials | Identified exit to Mines 1523 | -9/Materials | Identified exit to Storage 1603 | -9/Materials | First assault squad dispatched 1619 | -9/Materials | Entered Storage 1720 | -9/Storage | Lost 3 parts (2n1w) 1856 | -9/Storage | Core integrity fell below 50% 1909 | -9/Storage | Lost 5 parts (1p1n1u2w) 1933 | -9/Storage | Core integrity fell below 20% 1983 | -9/Storage | Build established: Mutant 2441 | -9/Storage | Discovered new exit (range 16) 2568 | -9/Storage | Entered Materials 2568 | -8/Materials | Evolved 2 slots: Propulsion x1, Utility x1 2776 | -8/Materials | Discovered new exit (range 15) 2985 | -8/Materials | Repaired Propulsion Shielding 3013 | -8/Materials | Repaired Aluminum Leg 3095 | -8/Materials | Lost 3 parts (1u2w) 3376 | -8/Materials | Discovered new exit (range 7) 3387 | -8/Materials | Entered Factory 3387 | -7/Factory | Evolved 2 slots: Utility x1, Weapon x1 3539 | -7/Factory | Fabricated Field Propulsion Drive (x2) 3791 | -7/Factory | Lost 4 parts (4w) 3974 | -7/Factory | Identified exit to Garrison 4018 | -7/Factory | Entered Garrison 4081 | -7/Garrison | Build established: Bomber 4100 | -7/Garrison | Triggered checkpoint 4191 | -7/Garrison | Triggered checkpoint 4198 | -7/Garrison | Triggered checkpoint 4225 | -7/Garrison | Core integrity fell below 50% 4240 | -7/Garrison | Core integrity fell below 20% 4250 | -7/Garrison | Destroyed 11 combat bots 4250 | -7/Garrison | Destroyed by S-27 Virus with Autogun Last Messages --------------- 04218_ Mni. Grenade Launcher destroyed. 04221_ Imp. Light Armor Plating destroyed. 04222_ Myomer Leg destroyed. 04225_ Destroyed VTOL Module. 04225_ S-27 Virus destroyed. 04225_ Destroyed VTOL Module. 04226_ Biometal Leg destroyed. 04227_ Imp. Phase Shifter destroyed. 04227_ Mni. Grenade Launcher destroyed. 04228_ The unstable cave ceiling collapses. 04229_ S-27 Virus destroyed. 04234_ Plasma Cannon destroyed. 04234_ Hpw. Shotgun destroyed. 04235_ G-47 Trooper destroyed. 04236_ Cryofiber Web destroyed. 04238_ System corrupted: Mic. Nuclear Core fused. 04238_ Mic. Nuclear Core destroyed. 04238_ Slammed into S-27 Virus. 04248_ Med. Storage Unit destroyed. Map ----- +----------------------------------------------------+ | ?????????????????????# #????????????????? | | ??????????????######## ! #????????????????? | | ??????????????# ## [! #????????????????? | | ??????????????# ## =*#????????????????? | | ??????????????# ##= #????????????????? | | ??????????????### = #????????????????? | | ????????????????# ## #????????????????? | | ????????????????# ## #????????????????? | | ????????????????# #############????????????????? | | ????????????????# #????????????????????????????? | | ????????????????# #????????????????????????????? | | ????????????????# #????????????????????????????? | | ????????????????# #????????????????????????????? | | ????????????????# #????????????????????????????? | | ????????????????# #????????????????????????????? | | ????????????????# #????????????????????????????? | | ????????????????# #???????????????????????????+? | | ????????????????# #????????????????????????????? | | ????????????????# #????????????????????????????? | | ????????????????# #????????????????????????????? | | ????????????????# #????????????????????????????? | | ????????????????# #????????????????????????????? | | ????????????????# #????????????????????????????? | | ????????????????# #????????????????????????????? | | ?################ ############?????????????????? | | ?# + @/ s #?????????????????? | | ?# *[* + s s #?????????????????? | | ?### ##### [ ## #### ####g #?????????????????? | | ???????????#= [## #??# ??## ##????????????????? | | ???##########"### #??#s??# #????????????????? | | ???# # # #?# #??# ??# #??????????????+? | | ???# # ### #??#???# % ##???#???????????? | | ???# ! ## ^####???# *= #?? #???????????? | | ??## # # ##T#+###[%% # ###+###?????? | | ??# #* ^= ????? | | ??### ##""# # ????? | | ????###???# #### [ ????? | | ??????????# #???########## = % # ##?????? | | ??????????##?????????????### %=## #??????? | | ???????????????????????????%= % *%= ?????? | | ?????????????????????????? [%= ?????? | | ?????????????????????????# !% ??????? | | ?????????????????????????# = ?+????? | | ?????????????????????????### # ## #??????? | | ??????????????????+????????# ## #?? ???????? | | ??????????????????????????? ? ?? ???????? | | ??????????????????????????? ?? ??+??????? | | ???????????????????????????# ? ?????????? | | ???????????????????????????##+###??""## ?????????? | | ?????????????????????????????????????????????????? | +----------------------------------------------------+ Best States ------------- Heat Dissipation 72 Energy Generation 18 Energy Capacity 250 Matter Stores 378 Matter Capacity 450 Sight Range 16 Terrain Scan Density 10 Base Temperature (-) 100 Armor Coverage 150 Propulsion Shielding 33 Phase Shifting 10 Evasion (%) 65 Targeting Accuracy 10 Launcher Accuracy 20 Recoil Reduction 3 Item Schematics ----------------- None Robot Schematics ------------------ None Fabricated ------------ Field Propulsion Drive | x2 | -7/Factory | Preloaded Alien Tech Used ----------------- None Achievements -------------- Just What I Needed Challenges ------------ None Game ------ Seed InsulationPlasmaDetonator Manual? 0 Play Time 01:21:14 Cumulative 11.1 hours Start 2024.10.11 @ 20:20:49 End 2024.10.11 @ 22:46:31 Sessions 1 Manual Loads 0 Difficulty Rogue Special Mode None Game No. 7 Rogue 1 Adventurer 6 Explorer 0 Win Type - Total 0 Types 0/0/0/0/0/0/0/0/0 Lore% 7 Gallery% 16 Achievement% 14 Wizard Run 0 Options --------- Layout 1 ASCII 0 Keyboard 0 Movement Arrows Keybinds 0 Fullscreen 2 Font 24/Tamsyn Map View 50x35 Zoom Use 0% Tactical HUD 1 Map Filters NONE Filters NONE Steam 1 RUN: 0eb9bcb9-8ab5-4b97-9590-69ec48850c68